Workbook

Sheet Sheet2
A1: 2023年度濉溪县公开招聘中小学新任教师面试成绩及总成绩
A2: 总序号 | B2: 小组序号 | C2: 性别 | D2: 准考证号 | E2: 报考职位 | F2: 职位代码 | G2: 笔试总成绩 | H2: 面试成绩 | I2: 笔试合成成绩 | J2: 面试合成成绩 | K2: 合成后总成绩
A3: 1 | B3: 9 | C3: 男 | D3: 23061102801 | E3: 初中语文A | F3: 02001 | G3: 96.35 | H3: 77.04 | I3: =G3/1.2*0.5 -> 40.15 | J3: =H3*0.5 -> 38.52 | K3: =SUM(I3:J3) -> 78.67
A4: 2 | B4: 15 | C4: 女 | D4: 23061103222 | E4: 初中语文A | F4: 02001 | G4: 94.05 | H4: 70.3 | I4: 39.19 | J4: 35.15 | K4: 74.34
A5: 3 | B5: 5 | C5: 女 | D5: 23061103005 | E5: 初中语文A | F5: 02001 | G5: 97.5 | H5: 81.46 | I5: 40.63 | J5: 40.73 | K5: 81.36
A6: 4 | B6: 18 | C6: 女 | D6: 23061103522 | E6: 初中语文A | F6: 02001 | G6: 93 | H6: 79.62 | I6: 38.75 | J6: 39.81 | K6: 78.56
A7: 5 | B7: 25 | C7: 女 | D7: 23061103129 | E7: 初中语文A | F7: 02001 | G7: 91.1 | H7: 82.9 | I7: 37.96 | J7: 41.45 | K7: 79.41
A8: 6 | B8: 11 | C8: 女 | D8: 23061103504 | E8: 初中语文A | F8: 02001 | G8: 95.55 | H8: 80.16 | I8: 39.81 | J8: 40.08 | K8: 79.89
A9: 7 | B9: 2 | C9: 女 | D9: 23061103601 | E9: 初中语文A | F9: 02001 | G9: 101.2 | H9: 80.04 | I9: 42.17 | J9: 40.02 | K9: 82.19
A10: 8 | B10: 10 | C10: 男 | D10: 23061103114 | E10: 初中语文A | F10: 02001 | G10: 96.3 | H10: 80.3 | I10: 40.13 | J10: 40.15 | K10: 80.28
A11: 9 | B11: 3 | C11: 女 | D11: 23061103404 | E11: 初中语文A | F11: 02001 | G11: 100.6 | H11: 77.18 | I11: 41.92 | J11: 38.59 | K11: 80.51
A12: 10 | B12: 21 | C12: 女 | D12: 23061103122 | E12: 初中语文A | F12: 02001 | G12: 91.65 | H12: 79.16 | I12: 38.19 | J12: 39.58 | K12: 77.77
A13: 11 | B13: 22 | C13: 女 | D13: 23061103206 | E13: 初中语文A | F13: 02001 | G13: 91.65 | H13: 80.86 | I13: 38.19 | J13: 40.43 | K13: 78.62
A14: 12 | B14: 19 | C14: 女 | D14: 23061103108 | E14: 初中语文A | F14: 02001 | G14: 92.05 | H14: 79.08 | I14: 38.35 | J14: 39.54 | K14: 77.89
A15: 13 | B15: 8 | C15: 女 | D15: 23061102802 | E15: 初中语文A | F15: 02001 | G15: 96.6 | H15: 79.78 | I15: 40.25 | J15: 39.89 | K15: 80.14
A16: 14 | B16: 7 | C16: 女 | D16: 23061103119 | E16: 初中语文A | F16: 02001 | G16: 97 | H16: 82.5 | I16: 40.42 | J16: 41.25 | K16: 81.67
A17: 15 | B17: 1 | C17: 女 | D17: 23061103506 | E17: 初中语文A | F17: 02001 | G17: 103.1 | H17: 84.12 | I17: 42.96 | J17: 42.06 | K17: 85.02
A18: 16 | B18: 12 | C18: 女 | D18: 23061103102 | E18: 初中语文A | F18: 02001 | G18: 95.25 | H18: 79.74 | I18: 39.69 | J18: 39.87 | K18: 79.56
A19: 17 | B19: 26 | C19: 女 | D19: 23061103221 | E19: 初中语文A | F19: 02001 | G19: 91.05 | H19: 81 | I19: 37.94 | J19: 40.50 | K19: 78.44
A20: 18 | B20: 13 | C20: 女 | D20: 23061103218 | E20: 初中语文A | F20: 02001 | G20: 94.35 | H20: 79.28 | I20: 39.31 | J20: 39.64 | K20: 78.95
A21: 19 | B21: 17 | C21: 女 | D21: 23061103127 | E21: 初中语文A | F21: 02001 | G21: 93.2 | H21: 77.66 | I21: 38.83 | J21: 38.83 | K21: 77.66
A22: 20 | B22: 23 | C22: 女 | D22: 23061103224 | E22: 初中语文A | F22: 02001 | G22: 91.35 | H22: 78.02 | I22: 38.06 | J22: 39.01 | K22: 77.07
A23: 21 | B23: 24 | C23: 女 | D23: 23061103316 | E23: 初中语文A | F23: 02001 | G23: 91.3 | H23: 79.5 | I23: 38.04 | J23: 39.75 | K23: 77.79
A24: 22 | B24: 4 | C24: 女 | D24: 23061103123 | E24: 初中语文A | F24: 02001 | G24: 99.35 | H24: 78.24 | I24: 41.40 | J24: 39.12 | K24: 80.52
A25: 23 | B25: 6 | C25: 女 | D25: 23061103111 | E25: 初中语文A | F25: 02001 | G25: 97.35 | H25: 78.88 | I25: 40.56 | J25: 39.44 | K25: 80.00
A26: 24 | B26: 14 | C26: 女 | D26: 23061103311 | E26: 初中语文A | F26: 02001 | G26: 94.35 | H26: 0 | I26: 39.31 | J26: 0.00 | K26: 39.31
A27: 25 | B27: 16 | C27: 女 | D27: 23061103330 | E27: 初中语文A | F27: 02001 | G27: 93.65 | H27: 0 | I27: 39.02 | J27: 0.00 | K27: 39.02
A28: 26 | B28: 20 | C28: 女 | D28: 23061103507 | E28: 初中语文A | F28: 02001 | G28: 91.95 | H28: 0 | I28: 38.31 | J28: 0.00 | K28: 38.31
A29: 27 | B29: 5 | C29: 女 | D29: 23061103928 | E29: 初中语文B | F29: 02002 | G29: 97.6 | H29: 74.84 | I29: 40.67 | J29: 37.42 | K29: 78.09
A30: 28 | B30: 2 | C30: 女 | D30: 23061103729 | E30: 初中语文B | F30: 02002 | G30: 100.05 | H30: 79.58 | I30: 41.69 | J30: 39.79 | K30: 81.48
A31: 29 | B31: 22 | C31: 女 | D31: 23061104115 | E31: 初中语文B | F31: 02002 | G31: 92.05 | H31: 77.22 | I31: 38.35 | J31: 38.61 | K31: 76.96
A32: 30 | B32: 18 | C32: 女 | D32: 23061103709 | E32: 初中语文B | F32: 02002 | G32: 92.75 | H32: 79.58 | I32: 38.65 | J32: 39.79 | K32: 78.44
A33: 31 | B33: 17 | C33: 女 | D33: 23061103720 | E33: 初中语文B | F33: 02002 | G33: 93.15 | H33: 76.98 | I33: 38.81 | J33: 38.49 | K33: 77.30
A34: 32 | B34: 16 | C34: 女 | D34: 23061104011 | E34: 初中语文B | F34: 02002 | G34: 93.2 | H34: 76.44 | I34: 38.83 | J34: 38.22 | K34: 77.05
A35: 33 | B35: 11 | C35: 女 | D35: 23061103927 | E35: 初中语文B | F35: 02002 | G35: 94.15 | H35: 76.1 | I35: 39.23 | J35: 38.05 | K35: 77.28
A36: 34 | B36: 14 | C36: 女 | D36: 23061103717 | E36: 初中语文B | F36: 02002 | G36: 93.65 | H36: 82.9 | I36: 39.02 | J36: 41.45 | K36: 80.47
A37: 35 | B37: 15 | C37: 女 | D37: 23061103620 | E37: 初中语文B | F37: 02002 | G37: 93.2 | H37: 75.72 | I37: 38.83 | J37: 37.86 | K37: 76.69
A38: 36 | B38: 13 | C38: 女 | D38: 23061104107 | E38: 初中语文B | F38: 02002 | G38: 93.85 | H38: 75.16 | I38: 39.10 | J38: 37.58 | K38: 76.68
A39: 37 | B39: 8 | C39: 男 | D39: 23061104116 | E39: 初中语文B | F39: 02002 | G39: 95.3 | H39: 80.26 | I39: 39.71 | J39: 40.13 | K39: 79.84
A40: 38 | B40: 10 | C40: 女 | D40: 23061104023 | E40: 初中语文B | F40: 02002 | G40: 94.25 | H40: 76.48 | I40: 39.27 | J40: 38.24 | K40: 77.51
A41: 39 | B41: 21 | C41: 男 | D41: 23061103827 | E41: 初中语文B | F41: 02002 | G41: 92.05 | H41: 75.58 | I41: 38.35 | J41: 37.79 | K41: 76.14
A42: 40 | B42: 1 | C42: 女 | D42: 23061104104 | E42: 初中语文B | F42: 02002 | G42: 101.35 | H42: 80.58 | I42: 42.23 | J42: 40.29 | K42: 82.52
A43: 41 | B43: 19 | C43: 女 | D43: 23061104025 | E43: 初中语文B | F43: 02002 | G43: 92.45 | H43: 82.18 | I43: 38.52 | J43: 41.09 | K43: 79.61
A44: 42 | B44: 12 | C44: 女 | D44: 23061104016 | E44: 初中语文B | F44: 02002 | G44: 93.95 | H44: 77.46 | I44: 39.15 | J44: 38.73 | K44: 77.88
A45: 43 | B45: 20 | C45: 女 | D45: 23061103714 | E45: 初中语文B | F45: 02002 | G45: 92.1 | H45: 74.7 | I45: 38.38 | J45: 37.35 | K45: 75.73
A46: 44 | B46: 9 | C46: 女 | D46: 23061103922 | E46: 初中语文B | F46: 02002 | G46: 94.45 | H46: 76.04 | I46: 39.35 | J46: 38.02 | K46: 77.37
A47: 45 | B47: 3 | C47: 女 | D47: 23061103812 | E47: 初中语文B | F47: 02002 | G47: 98.1 | H47: 77.9 | I47: 40.88 | J47: 38.95 | K47: 79.83
A48: 46 | B48: 4 | C48: 女 | D48: 23061104111 | E48: 初中语文B | F48: 02002 | G48: 97.85 | H48: 75.62 | I48: 40.77 | J48: 37.81 | K48: 78.58
A49: 47 | B49: 6 | C49: 女 | D49: 23061103805 | E49: 初中语文B | F49: 02002 | G49: 96.65 | H49: 80.52 | I49: 40.27 | J49: 40.26 | K49: 80.53
A50: 48 | B50: 7 | C50: 女 | D50: 23061103706 | E50: 初中语文B | F50: 02002 | G50: 95.3 | H50: 0 | I50: 39.71 | J50: 0.00 | K50: 39.71
A51: 49 | B51: 1 | C51: 女 | D51: 23061104328 | E51: 初中数学A | F51: 02003 | G51: 96.6 | H51: 77.94 | I51: 40.25 | J51: 38.97 | K51: 79.22
A52: 50 | B52: 6 | C52: 女 | D52: 23061104127 | E52: 初中数学A | F52: 02003 | G52: 92.75 | H52: 79.5 | I52: 38.65 | J52: 39.75 | K52: 78.40
A53: 51 | B53: 15 | C53: 女 | D53: 23061104303 | E53: 初中数学A | F53: 02003 | G53: 88.5 | H53: 77.8 | I53: 36.88 | J53: 38.90 | K53: 75.78
A54: 52 | B54: 5 | C54: 男 | D54: 23061200130 | E54: 初中数学A | F54: 02003 | G54: 92.95 | H54: 77.72 | I54: 38.73 | J54: 38.86 | K54: 77.59
A55: 53 | B55: 9 | C55: 女 | D55: 23061104224 | E55: 初中数学A | F55: 02003 | G55: 91.95 | H55: 76.36 | I55: 38.31 | J55: 38.18 | K55: 76.49
A56: 54 | B56: 12 | C56: 女 | D56: 23061104218 | E56: 初中数学A | F56: 02003 | G56: 90.7 | H56: 81 | I56: 37.79 | J56: 40.50 | K56: 78.29
A57: 55 | B57: 11 | C57: 女 | D57: 23061104219 | E57: 初中数学A | F57: 02003 | G57: 90.75 | H57: 81.88 | I57: 37.81 | J57: 40.94 | K57: 78.75
A58: 56 | B58: 13 | C58: 女 | D58: 23061200103 | E58: 初中数学A | F58: 02003 | G58: 88.65 | H58: 77.28 | I58: 36.94 | J58: 38.64 | K58: 75.58
A59: 57 | B59: 4 | C59: 女 | D59: 23061104210 | E59: 初中数学A | F59: 02003 | G59: 93.6 | H59: 76.38 | I59: 39.00 | J59: 38.19 | K59: 77.19
A60: 58 | B60: 8 | C60: 女 | D60: 23061200213 | E60: 初中数学A | F60: 02003 | G60: 92.1 | H60: 76.76 | I60: 38.38 | J60: 38.38 | K60: 76.76
A61: 59 | B61: 3 | C61: 女 | D61: 23061200104 | E61: 初中数学A | F61: 02003 | G61: 95.75 | H61: 80.4 | I61: 39.90 | J61: 40.20 | K61: 80.10
A62: 60 | B62: 2 | C62: 女 | D62: 23061200211 | E62: 初中数学A | F62: 02003 | G62: 95.9 | H62: 77.76 | I62: 39.96 | J62: 38.88 | K62: 78.84
A63: 61 | B63: 16 | C63: 男 | D63: 23061200204 | E63: 初中数学A | F63: 02003 | G63: 88.2 | H63: 80.78 | I63: 36.75 | J63: 40.39 | K63: 77.14
A64: 62 | B64: 14 | C64: 女 | D64: 23061104212 | E64: 初中数学A | F64: 02003 | G64: 88.6 | H64: 77.7 | I64: 36.92 | J64: 38.85 | K64: 75.77
A65: 63 | B65: 7 | C65: 女 | D65: 23061200205 | E65: 初中数学A | F65: 02003 | G65: 92.65 | H65: 80.76 | I65: 38.60 | J65: 40.38 | K65: 78.98
A66: 64 | B66: 10 | C66: 男 | D66: 23061200126 | E66: 初中数学A | F66: 02003 | G66: 91.3 | H66: 78.74 | I66: 38.04 | J66: 39.37 | K66: 77.41
A67: 65 | B67: 10 | C67: 女 | D67: 23061200315 | E67: 初中数学B | F67: 02004 | G67: 92.65 | H67: 77.58 | I67: =G67/1.2*0.5 -> 38.60 | J67: =H67*0.5 -> 38.79 | K67: =SUM(I67:J67) -> 77.39
A68: 66 | B68: 16 | C68: 女 | D68: 23061200417 | E68: 初中数学B | F68: 02004 | G68: 88.7 | H68: 76.2 | I68: 36.96 | J68: 38.10 | K68: 75.06
A69: 67 | B69: 12 | C69: 女 | D69: 23061200414 | E69: 初中数学B | F69: 02004 | G69: 89.8 | H69: 78.04 | I69: 37.42 | J69: 39.02 | K69: 76.44
A70: 68 | B70: 15 | C70: 男 | D70: 23061200508 | E70: 初中数学B | F70: 02004 | G70: 89.15 | H70: 78.64 | I70: 37.15 | J70: 39.32 | K70: 76.47
A71: 69 | B71: 4 | C71: 女 | D71: 23061200225 | E71: 初中数学B | F71: 02004 | G71: 95.45 | H71: 77.18 | I71: 39.77 | J71: 38.59 | K71: 78.36
A72: 70 | B72: 13 | C72: 女 | D72: 23061200409 | E72: 初中数学B | F72: 02004 | G72: 89.7 | H72: 77.34 | I72: 37.38 | J72: 38.67 | K72: 76.05
A73: 71 | B73: 17 | C73: 女 | D73: 23061200321 | E73: 初中数学B | F73: 02004 | G73: 88.45 | H73: 73.96 | I73: 36.85 | J73: 36.98 | K73: 73.83
A74: 72 | B74: 8 | C74: 女 | D74: 23061200311 | E74: 初中数学B | F74: 02004 | G74: 94.1 | H74: 80.22 | I74: 39.21 | J74: 40.11 | K74: 79.32
A75: 73 | B75: 5 | C75: 女 | D75: 23061200501 | E75: 初中数学B | F75: 02004 | G75: 94.85 | H75: 81.54 | I75: 39.52 | J75: 40.77 | K75: 80.29
A76: 74 | B76: 6 | C76: 女 | D76: 23061200426 | E76: 初中数学B | F76: 02004 | G76: 94.25 | H76: 83.24 | I76: 39.27 | J76: 41.62 | K76: 80.89
A77: 75 | B77: 11 | C77: 女 | D77: 23061200215 | E77: 初中数学B | F77: 02004 | G77: 91.25 | H77: 78.42 | I77: 38.02 | J77: 39.21 | K77: 77.23
A78: 76 | B78: 9 | C78: 女 | D78: 23061200410 | E78: 初中数学B | F78: 02004 | G78: 93.3 | H78: 76.58 | I78: 38.88 | J78: 38.29 | K78: 77.17
A79: 77 | B79: 14 | C79: 女 | D79: 23061200504 | E79: 初中数学B | F79: 02004 | G79: 89.3 | H79: 76.62 | I79: 37.21 | J79: 38.31 | K79: 75.52
A80: 78 | B80: 2 | C80: 女 | D80: 23061200216 | E80: 初中数学B | F80: 02004 | G80: 98.25 | H80: 78.26 | I80: 40.94 | J80: 39.13 | K80: 80.07
A81: 79 | B81: 18 | C81: 女 | D81: 23061200310 | E81: 初中数学B | F81: 02004 | G81: 88.35 | H81: 75.34 | I81: 36.81 | J81: 37.67 | K81: 74.48
A82: 80 | B82: 7 | C82: 女 | D82: 23061200328 | E82: 初中数学B | F82: 02004 | G82: 94.15 | H82: 75.42 | I82: 39.23 | J82: 37.71 | K82: 76.94
A83: 81 | B83: 3 | C83: 女 | D83: 23061200330 | E83: 初中数学B | F83: 02004 | G83: 96.1 | H83: 77.84 | I83: 40.04 | J83: 38.92 | K83: 78.96
A84: 82 | B84: 1 | C84: 女 | D84: 23061200318 | E84: 初中数学B | F84: 02004 | G84: 98.6 | H84: 0 | I84: 41.08 | J84: 0.00 | K84: 41.08
A85: 83 | B85: 9 | C85: 女 | D85: 23061200511 | E85: 初中数学C | F85: 02005 | G85: 87.7 | H85: 49.72 | I85: 36.54 | J85: 24.86 | K85: 61.40
A86: 84 | B86: 14 | C86: 男 | D86: 23061200615 | E86: 初中数学C | F86: 02005 | G86: 85.25 | H86: 74.12 | I86: 35.52 | J86: 37.06 | K86: 72.58
A87: 85 | B87: 10 | C87: 女 | D87: 23061200630 | E87: 初中数学C | F87: 02005 | G87: 86.95 | H87: 76.6 | I87: 36.23 | J87: 38.30 | K87: 74.53
A88: 86 | B88: 6 | C88: 女 | D88: 23061200624 | E88: 初中数学C | F88: 02005 | G88: 89.5 | H88: 82.36 | I88: 37.29 | J88: 41.18 | K88: 78.47
A89: 87 | B89: 11 | C89: 女 | D89: 23061200528 | E89: 初中数学C | F89: 02005 | G89: 86.55 | H89: 80.18 | I89: 36.06 | J89: 40.09 | K89: 76.15
A90: 88 | B90: 4 | C90: 女 | D90: 23061200614 | E90: 初中数学C | F90: 02005 | G90: 91.05 | H90: 80.32 | I90: 37.94 | J90: 40.16 | K90: 78.10
A91: 89 | B91: 8 | C91: 女 | D91: 23061200523 | E91: 初中数学C | F91: 02005 | G91: 88.75 | H91: 73.22 | I91: 36.98 | J91: 36.61 | K91: 73.59
A92: 90 | B92: 7 | C92: 女 | D92: 23061200527 | E92: 初中数学C | F92: 02005 | G92: 89.05 | H92: 73.36 | I92: 37.10 | J92: 36.68 | K92: 73.78
A93: 91 | B93: 2 | C93: 女 | D93: 23061200524 | E93: 初中数学C | F93: 02005 | G93: 96.8 | H93: 72.78 | I93: 40.33 | J93: 36.39 | K93: 76.72
A94: 92 | B94: 3 | C94: 女 | D94: 23061200612 | E94: 初中数学C | F94: 02005 | G94: 91.85 | H94: 73.54 | I94: 38.27 | J94: 36.77 | K94: 75.04
A95: 93 | B95: 13 | C95: 男 | D95: 23061200608 | E95: 初中数学C | F95: 02005 | G95: 85.6 | H95: 79.86 | I95: 35.67 | J95: 39.93 | K95: 75.60
A96: 94 | B96: 12 | C96: 男 | D96: 23061200605 | E96: 初中数学C | F96: 02005 | G96: 86.45 | H96: 78.1 | I96: 36.02 | J96: 39.05 | K96: 75.07
A97: 95 | B97: 5 | C97: 女 | D97: 23061200706 | E97: 初中数学C | F97: 02005 | G97: 90.5 | H97: 76.4 | I97: 37.71 | J97: 38.20 | K97: 75.91
A98: 96 | B98: 1 | C98: 女 | D98: 23061200616 | E98: 初中数学C | F98: 02005 | G98: 98.65 | H98: 0 | I98: 41.10 | J98: 0.00 | K98: 41.10
A99: 97 | B99: 1 | C99: 女 | D99: 23061201028 | E99: 初中英语A | F99: 02006 | G99: 103.7 | H99: 77.94 | I99: 43.21 | J99: 38.97 | K99: 82.18
A100: 98 | B100: 5 | C100: 女 | D100: 23061200709 | E100: 初中英语A | F100: 02006 | G100: 100.7 | H100: 76.12 | I100: 41.96 | J100: 38.06 | K100: 80.02
A101: 99 | B101: 8 | C101: 女 | D101: 23061200826 | E101: 初中英语A | F101: 02006 | G101: 99.1 | H101: 78.64 | I101: 41.29 | J101: 39.32 | K101: 80.61
A102: 100 | B102: 7 | C102: 女 | D102: 23061201316 | E102: 初中英语A | F102: 02006 | G102: 99.35 | H102: 72.54 | I102: 41.40 | J102: 36.27 | K102: 77.67
A103: 101 | B103: 6 | C103: 女 | D103: 23061200815 | E103: 初中英语A | F103: 02006 | G103: 99.35 | H103: 81.34 | I103: 41.40 | J103: 40.67 | K103: 82.07
A104: 102 | B104: 2 | C104: 女 | D104: 23061201310 | E104: 初中英语A | F104: 02006 | G104: 102.65 | H104: 77.8 | I104: 42.77 | J104: 38.90 | K104: 81.67
A105: 103 | B105: 3 | C105: 女 | D105: 23061201325 | E105: 初中英语A | F105: 02006 | G105: 101.45 | H105: 79.32 | I105: 42.27 | J105: 39.66 | K105: 81.93
A106: 104 | B106: 11 | C106: 女 | D106: 23061201306 | E106: 初中英语A | F106: 02006 | G106: 97.35 | H106: 73.5 | I106: 40.56 | J106: 36.75 | K106: 77.31
A107: 105 | B107: 14 | C107: 女 | D107: 23061200714 | E107: 初中英语A | F107: 02006 | G107: 96.25 | H107: 83.6 | I107: 40.10 | J107: 41.80 | K107: 81.90
A108: 106 | B108: 4 | C108: 女 | D108: 23061200930 | E108: 初中英语A | F108: 02006 | G108: 101.3 | H108: 73.76 | I108: 42.21 | J108: 36.88 | K108: 79.09
A109: 107 | B109: 10 | C109: 女 | D109: 23061201114 | E109: 初中英语A | F109: 02006 | G109: 97.75 | H109: 78.64 | I109: 40.73 | J109: 39.32 | K109: 80.05
A110: 108 | B110: 13 | C110: 女 | D110: 23061200810 | E110: 初中英语A | F110: 02006 | G110: 97.1 | H110: 76.16 | I110: 40.46 | J110: 38.08 | K110: 78.54
A111: 109 | B111: 9 | C111: 女 | D111: 23061200829 | E111: 初中英语A | F111: 02006 | G111: 98.5 | H111: 79.48 | I111: 41.04 | J111: 39.74 | K111: 80.78
A112: 110 | B112: 12 | C112: 女 | D112: 23061201429 | E112: 初中英语A | F112: 02006 | G112: 97.15 | H112: 75.94 | I112: 40.48 | J112: 37.97 | K112: 78.45
A113: 111 | B113: 13 | C113: 女 | D113: 23061201814 | E113: 初中英语B | F113: 02007 | G113: 95.45 | H113: 79.44 | I113: 39.77 | J113: 39.72 | K113: 79.49
A114: 112 | B114: 4 | C114: 女 | D114: 23061202027 | E114: 初中英语B | F114: 02007 | G114: 98.9 | H114: 74.44 | I114: 41.21 | J114: 37.22 | K114: 78.43
A115: 113 | B115: 11 | C115: 女 | D115: 23061201602 | E115: 初中英语B | F115: 02007 | G115: 95.9 | H115: 84.4 | I115: 39.96 | J115: 42.20 | K115: 82.16
A116: 114 | B116: 14 | C116: 女 | D116: 23061201703 | E116: 初中英语B | F116: 02007 | G116: 95.25 | H116: 75.24 | I116: 39.69 | J116: 37.62 | K116: 77.31
A117: 115 | B117: 16 | C117: 女 | D117: 23061201920 | E117: 初中英语B | F117: 02007 | G117: 94.75 | H117: 75.48 | I117: 39.48 | J117: 37.74 | K117: 77.22
A118: 116 | B118: 10 | C118: 女 | D118: 23061202111 | E118: 初中英语B | F118: 02007 | G118: 96.3 | H118: 73.48 | I118: 40.13 | J118: 36.74 | K118: 76.87
A119: 117 | B119: 9 | C119: 女 | D119: 23061201717 | E119: 初中英语B | F119: 02007 | G119: 96.3 | H119: 73.8 | I119: 40.13 | J119: 36.90 | K119: 77.03
A120: 118 | B120: 7 | C120: 女 | D120: 23061201916 | E120: 初中英语B | F120: 02007 | G120: 96.55 | H120: 71.32 | I120: 40.23 | J120: 35.66 | K120: 75.89
A121: 119 | B121: 17 | C121: 女 | D121: 23061202103 | E121: 初中英语B | F121: 02007 | G121: 94.75 | H121: 76.32 | I121: 39.48 | J121: 38.16 | K121: 77.64
A122: 120 | B122: 3 | C122: 男 | D122: 23061202115 | E122: 初中英语B | F122: 02007 | G122: 99.6 | H122: 82.18 | I122: 41.50 | J122: 41.09 | K122: 82.59
A123: 121 | B123: 6 | C123: 女 | D123: 23061201622 | E123: 初中英语B | F123: 02007 | G123: 97.8 | H123: 78.98 | I123: 40.75 | J123: 39.49 | K123: 80.24
A124: 122 | B124: 2 | C124: 女 | D124: 23061201612 | E124: 初中英语B | F124: 02007 | G124: 100.95 | H124: 74.92 | I124: 42.06 | J124: 37.46 | K124: 79.52
A125: 123 | B125: 8 | C125: 女 | D125: 23061201517 | E125: 初中英语B | F125: 02007 | G125: 96.5 | H125: 75.44 | I125: 40.21 | J125: 37.72 | K125: 77.93
A126: 124 | B126: 1 | C126: 女 | D126: 23061201917 | E126: 初中英语B | F126: 02007 | G126: 101 | H126: 76.74 | I126: 42.08 | J126: 38.37 | K126: 80.45
A127: 125 | B127: 5 | C127: 女 | D127: 23061201522 | E127: 初中英语B | F127: 02007 | G127: 98.8 | H127: 78.14 | I127: 41.17 | J127: 39.07 | K127: 80.24
A128: 126 | B128: 15 | C128: 女 | D128: 23061201810 | E128: 初中英语B | F128: 02007 | G128: 95.2 | H128: 0 | I128: 39.67 | J128: 0.00 | K128: 39.67
A129: 127 | B129: 12 | C129: 女 | D129: 23061202003 | E129: 初中英语B | F129: 02007 | G129: 95.75 | H129: 0 | I129: 39.90 | J129: 0.00 | K129: 39.90
A130: 128 | B130: 9 | C130: 女 | D130: 23061202527 | E130: 初中英语C | F130: 02008 | G130: 95.7 | H130: 72.62 | I130: 39.88 | J130: 36.31 | K130: 76.19
A131: 129 | B131: 3 | C131: 女 | D131: 23061202205 | E131: 初中英语C | F131: 02008 | G131: 99.25 | H131: 75.94 | I131: =G131/1.2*0.5 -> 41.35 | J131: =H131*0.5 -> 37.97 | K131: =SUM(I131:J131) -> 79.32
A132: 130 | B132: 2 | C132: 女 | D132: 23061202907 | E132: 初中英语C | F132: 02008 | G132: 100.35 | H132: 76.3 | I132: 41.81 | J132: 38.15 | K132: 79.96
A133: 131 | B133: 10 | C133: 女 | D133: 23061202318 | E133: 初中英语C | F133: 02008 | G133: 95.55 | H133: 80.54 | I133: 39.81 | J133: 40.27 | K133: 80.08
A134: 132 | B134: 5 | C134: 男 | D134: 23061202602 | E134: 初中英语C | F134: 02008 | G134: 97.95 | H134: 70.42 | I134: 40.81 | J134: 35.21 | K134: 76.02
A135: 133 | B135: 8 | C135: 女 | D135: 23061202909 | E135: 初中英语C | F135: 02008 | G135: 96.65 | H135: 73.34 | I135: 40.27 | J135: 36.67 | K135: 76.94
A136: 134 | B136: 15 | C136: 女 | D136: 23061202728 | E136: 初中英语C | F136: 02008 | G136: 94.45 | H136: 78.26 | I136: 39.35 | J136: 39.13 | K136: 78.48
A137: 135 | B137: 18 | C137: 女 | D137: 23061202802 | E137: 初中英语C | F137: 02008 | G137: 93.7 | H137: 78.28 | I137: 39.04 | J137: 39.14 | K137: 78.18
A138: 136 | B138: 1 | C138: 女 | D138: 23061202604 | E138: 初中英语C | F138: 02008 | G138: 100.75 | H138: 77.82 | I138: 41.98 | J138: 38.91 | K138: 80.89
A139: 137 | B139: 13 | C139: 女 | D139: 23061202716 | E139: 初中英语C | F139: 02008 | G139: 94.95 | H139: 75.96 | I139: 39.56 | J139: 37.98 | K139: 77.54
A140: 138 | B140: 12 | C140: 女 | D140: 23061202507 | E140: 初中英语C | F140: 02008 | G140: 95.2 | H140: 73.34 | I140: 39.67 | J140: 36.67 | K140: 76.34
A141: 139 | B141: 7 | C141: 女 | D141: 23061202725 | E141: 初中英语C | F141: 02008 | G141: 96.75 | H141: 71.72 | I141: 40.31 | J141: 35.86 | K141: 76.17
A142: 140 | B142: 11 | C142: 女 | D142: 23061202129 | E142: 初中英语C | F142: 02008 | G142: 95.5 | H142: 76.3 | I142: 39.79 | J142: 38.15 | K142: 77.94
A143: 141 | B143: 6 | C143: 女 | D143: 23061202315 | E143: 初中英语C | F143: 02008 | G143: 96.8 | H143: 78.54 | I143: 40.33 | J143: 39.27 | K143: 79.60
A144: 142 | B144: 4 | C144: 女 | D144: 23061202707 | E144: 初中英语C | F144: 02008 | G144: 98.85 | H144: 0 | I144: 41.19 | J144: 0.00 | K144: 41.19
A145: 143 | B145: 14 | C145: 女 | D145: 23061202625 | E145: 初中英语C | F145: 02008 | G145: 94.65 | H145: 0 | I145: 39.44 | J145: 0.00 | K145: 39.44
A146: 144 | B146: 16 | C146: 女 | D146: 23061202311 | E146: 初中英语C | F146: 02008 | G146: 94.15 | H146: 0 | I146: 39.23 | J146: 0.00 | K146: 39.23
A147: 145 | B147: 17 | C147: 女 | D147: 23061202209 | E147: 初中英语C | F147: 02008 | G147: 93.7 | H147: 0 | I147: 39.04 | J147: 0.00 | K147: 39.04
A148: 146 | B148: 7 | C148: 女 | D148: 23061203004 | E148: 初中物理 | F148: 02009 | G148: 70.7 | H148: 73.48 | I148: 29.46 | J148: 36.74 | K148: 66.20
A149: 147 | B149: 3 | C149: 女 | D149: 23061203002 | E149: 初中物理 | F149: 02009 | G149: 86.65 | H149: 78.58 | I149: 36.10 | J149: 39.29 | K149: 75.39
A150: 148 | B150: 6 | C150: 男 | D150: 23061203003 | E150: 初中物理 | F150: 02009 | G150: 73.65 | H150: 83.4 | I150: 30.69 | J150: 41.70 | K150: 72.39
A151: 149 | B151: 5 | C151: 女 | D151: 23061203009 | E151: 初中物理 | F151: 02009 | G151: 74.2 | H151: 79.1 | I151: 30.92 | J151: 39.55 | K151: 70.47
A152: 150 | B152: 2 | C152: 女 | D152: 23061203007 | E152: 初中物理 | F152: 02009 | G152: 92.05 | H152: 82.88 | I152: 38.35 | J152: 41.44 | K152: 79.79
A153: 151 | B153: 9 | C153: 男 | D153: 23061202929 | E153: 初中物理 | F153: 02009 | G153: 68.1 | H153: 78.22 | I153: 28.38 | J153: 39.11 | K153: 67.49
A154: 152 | B154: 10 | C154: 男 | D154: 23061203005 | E154: 初中物理 | F154: 02009 | G154: 66.2 | H154: 78.86 | I154: 27.58 | J154: 39.43 | K154: 67.01
A155: 153 | B155: 8 | C155: 男 | D155: 23061202928 | E155: 初中物理 | F155: 02009 | G155: 69.8 | H155: 81.72 | I155: 29.08 | J155: 40.86 | K155: 69.94
A156: 154 | B156: 1 | C156: 男 | D156: 23061202924 | E156: 初中物理 | F156: 02009 | G156: 94.1 | H156: 73.88 | I156: 39.21 | J156: 36.94 | K156: 76.15
A157: 155 | B157: 4 | C157: 女 | D157: 23061203008 | E157: 初中物理 | F157: 02009 | G157: 85.35 | H157: 0 | I157: 35.56 | J157: 0.00 | K157: 35.56
A158: 156 | B158: 4 | C158: 男 | D158: 23061203120 | E158: 初中化学 | F158: 02010 | G158: 96.05 | H158: 77.62 | I158: 40.02 | J158: 38.81 | K158: 78.83
A159: 157 | B159: 1 | C159: 男 | D159: 23061203018 | E159: 初中化学 | F159: 02010 | G159: 98 | H159: 81.66 | I159: 40.83 | J159: 40.83 | K159: 81.66
A160: 158 | B160: 6 | C160: 女 | D160: 23061203015 | E160: 初中化学 | F160: 02010 | G160: 95.15 | H160: 80.04 | I160: 39.65 | J160: 40.02 | K160: 79.67
A161: 159 | B161: 3 | C161: 女 | D161: 23061203025 | E161: 初中化学 | F161: 02010 | G161: 97.1 | H161: 83.72 | I161: 40.46 | J161: 41.86 | K161: 82.32
A162: 160 | B162: 5 | C162: 女 | D162: 23061203206 | E162: 初中化学 | F162: 02010 | G162: 95.65 | H162: 79.24 | I162: 39.85 | J162: 39.62 | K162: 79.47
A163: 161 | B163: 2 | C163: 男 | D163: 23061203209 | E163: 初中化学 | F163: 02010 | G163: 97.5 | H163: 83.92 | I163: 40.63 | J163: 41.96 | K163: 82.59
A164: 162 | B164: 15 | C164: 女 | D164: 23061203214 | E164: 初中历史 | F164: 02011 | G164: 70.85 | H164: 75.68 | I164: 29.52 | J164: 37.84 | K164: 67.36
A165: 163 | B165: 9 | C165: 女 | D165: 23061203307 | E165: 初中历史 | F165: 02011 | G165: 80.25 | H165: 81.52 | I165: 33.44 | J165: 40.76 | K165: 74.20
A166: 164 | B166: 7 | C166: 男 | D166: 23061203218 | E166: 初中历史 | F166: 02011 | G166: 81 | H166: 84.5 | I166: 33.75 | J166: 42.25 | K166: 76.00
A167: 165 | B167: 13 | C167: 男 | D167: 23061203304 | E167: 初中历史 | F167: 02011 | G167: 74 | H167: 78.36 | I167: 30.83 | J167: 39.18 | K167: 70.01
A168: 166 | B168: 10 | C168: 女 | D168: 23061203215 | E168: 初中历史 | F168: 02011 | G168: 78 | H168: 81.48 | I168: 32.50 | J168: 40.74 | K168: 73.24
A169: 167 | B169: 4 | C169: 女 | D169: 23061203224 | E169: 初中历史 | F169: 02011 | G169: 82.75 | H169: 81.42 | I169: 34.48 | J169: 40.71 | K169: 75.19
A170: 168 | B170: 2 | C170: 女 | D170: 23061203213 | E170: 初中历史 | F170: 02011 | G170: 87.85 | H170: 82.86 | I170: 36.60 | J170: 41.43 | K170: 78.03
A171: 169 | B171: 3 | C171: 男 | D171: 23061203226 | E171: 初中历史 | F171: 02011 | G171: 84 | H171: 77.32 | I171: 35.00 | J171: 38.66 | K171: 73.66
A172: 170 | B172: 1 | C172: 女 | D172: 23061203311 | E172: 初中历史 | F172: 02011 | G172: 91.35 | H172: 80.8 | I172: 38.06 | J172: 40.40 | K172: 78.46
A173: 171 | B173: 14 | C173: 女 | D173: 23061203312 | E173: 初中历史 | F173: 02011 | G173: 71.3 | H173: 81.1 | I173: 29.71 | J173: 40.55 | K173: 70.26
A174: 172 | B174: 5 | C174: 女 | D174: 23061203301 | E174: 初中历史 | F174: 02011 | G174: 82.7 | H174: 0 | I174: 34.46 | J174: 0.00 | K174: 34.46
A175: 173 | B175: 6 | C175: 女 | D175: 23061203217 | E175: 初中历史 | F175: 02011 | G175: 81.75 | H175: 0 | I175: 34.06 | J175: 0.00 | K175: 34.06
A176: 174 | B176: 8 | C176: 男 | D176: 23061203310 | E176: 初中历史 | F176: 02011 | G176: 80.8 | H176: 0 | I176: 33.67 | J176: 0.00 | K176: 33.67
A177: 175 | B177: 11 | C177: 女 | D177: 23061203303 | E177: 初中历史 | F177: 02011 | G177: 77.1 | H177: 0 | I177: 32.13 | J177: 0.00 | K177: 32.13
A178: 176 | B178: 12 | C178: 女 | D178: 23061203219 | E178: 初中历史 | F178: 02011 | G178: 74.25 | H178: 0 | I178: 30.94 | J178: 0.00 | K178: 30.94
A179: 177 | B179: 1 | C179: 女 | D179: 23061203328 | E179: 初中道德与法治 | F179: 02012 | G179: 99.75 | H179: 78.16 | I179: 41.56 | J179: 39.08 | K179: 80.64
A180: 178 | B180: 8 | C180: 女 | D180: 23061203324 | E180: 初中道德与法治 | F180: 02012 | G180: 75.3 | H180: 81.1 | I180: 31.38 | J180: 40.55 | K180: 71.93
A181: 179 | B181: 9 | C181: 女 | D181: 23061203314 | E181: 初中道德与法治 | F181: 02012 | G181: 74 | H181: 79.22 | I181: 30.83 | J181: 39.61 | K181: 70.44
A182: 180 | B182: 2 | C182: 女 | D182: 23061203409 | E182: 初中道德与法治 | F182: 02012 | G182: 99.3 | H182: 81.84 | I182: 41.38 | J182: 40.92 | K182: 82.30
A183: 181 | B183: 4 | C183: 女 | D183: 23061203322 | E183: 初中道德与法治 | F183: 02012 | G183: 85.1 | H183: 82.42 | I183: 35.46 | J183: 41.21 | K183: 76.67
A184: 182 | B184: 5 | C184: 女 | D184: 23061203327 | E184: 初中道德与法治 | F184: 02012 | G184: 80.9 | H184: 79.66 | I184: 33.71 | J184: 39.83 | K184: 73.54
A185: 183 | B185: 3 | C185: 女 | D185: 23061203408 | E185: 初中道德与法治 | F185: 02012 | G185: 97.4 | H185: 82.38 | I185: 40.58 | J185: 41.19 | K185: 81.77
A186: 184 | B186: 11 | C186: 女 | D186: 23061203320 | E186: 初中道德与法治 | F186: 02012 | G186: 69.7 | H186: 78.44 | I186: 29.04 | J186: 39.22 | K186: 68.26
A187: 185 | B187: 7 | C187: 女 | D187: 23061203401 | E187: 初中道德与法治 | F187: 02012 | G187: 77.6 | H187: 81.52 | I187: 32.33 | J187: 40.76 | K187: 73.09
A188: 186 | B188: 6 | C188: 女 | D188: 23061203412 | E188: 初中道德与法治 | F188: 02012 | G188: 79.95 | H188: 81.24 | I188: 33.31 | J188: 40.62 | K188: 73.93
A189: 187 | B189: 10 | C189: 男 | D189: 23061203318 | E189: 初中道德与法治 | F189: 02012 | G189: 70.55 | H189: 0 | I189: 29.40 | J189: 0.00 | K189: 29.40
A190: 188 | B190: 12 | C190: 男 | D190: 23061203315 | E190: 初中道德与法治 | F190: 02012 | G190: 66.05 | H190: 0 | I190: 27.52 | J190: 0.00 | K190: 27.52
A191: 189 | B191: 10 | C191: 男 | D191: 23061203426 | E191: 初中生物 | F191: 02013 | G191: 86.4 | H191: 70.68 | I191: 36.00 | J191: 35.34 | K191: 71.34
A192: 190 | B192: 12 | C192: 女 | D192: 23061203519 | E192: 初中生物 | F192: 02013 | G192: 84.2 | H192: 83.78 | I192: 35.08 | J192: 41.89 | K192: 76.97
A193: 191 | B193: 7 | C193: 男 | D193: 23061203527 | E193: 初中生物 | F193: 02013 | G193: 88.45 | H193: 76.74 | I193: 36.85 | J193: 38.37 | K193: 75.22
A194: 192 | B194: 1 | C194: 男 | D194: 23061203512 | E194: 初中生物 | F194: 02013 | G194: 92.8 | H194: 80.82 | I194: 38.67 | J194: 40.41 | K194: 79.08
A195: 193 | B195: 11 | C195: 女 | D195: 23061203424 | E195: 初中生物 | F195: 02013 | G195: 84.85 | H195: 71.1 | I195: =G195/1.2*0.5 -> 35.35 | J195: =H195*0.5 -> 35.55 | K195: =SUM(I195:J195) -> 70.90
A196: 194 | B196: 9 | C196: 男 | D196: 23061203428 | E196: 初中生物 | F196: 02013 | G196: 87.2 | H196: 80.14 | I196: 36.33 | J196: 40.07 | K196: 76.40
A197: 195 | B197: 2 | C197: 女 | D197: 23061203502 | E197: 初中生物 | F197: 02013 | G197: 92.35 | H197: 80.18 | I197: 38.48 | J197: 40.09 | K197: 78.57
A198: 196 | B198: 4 | C198: 男 | D198: 23061203522 | E198: 初中生物 | F198: 02013 | G198: 90.55 | H198: 81.46 | I198: 37.73 | J198: 40.73 | K198: 78.46
A199: 197 | B199: 6 | C199: 女 | D199: 23061203501 | E199: 初中生物 | F199: 02013 | G199: 89.1 | H199: 82.94 | I199: 37.13 | J199: 41.47 | K199: 78.60
A200: 198 | B200: 5 | C200: 女 | D200: 23061203504 | E200: 初中生物 | F200: 02013 | G200: 90.2 | H200: 83.06 | I200: 37.58 | J200: 41.53 | K200: 79.11
... 420 more rows
